Workbook

Sheet zpracování dat
D3: Sloupec pro hodnoty k zpracování
B4: 1 | C4: : | D4: 9 | E4: => | F4: 0 | I4: Dialog muž a žena - hudba v pozadí | S4: Souhrn
B5: 26 | C5: : | D5: 10 | E5: => | F5: 26 | I5: Metoda | J5: Barrandov | K5: COSP | L5: Resonances | M5: Sounddirect | N5: Součet | S5: Metoda | T5: Barrandov | U5: COSP | V5: Ressonances | W5: Sounddirect | X5: Součet
B6: 11 | C6: : | D6: 19 | E6: => | F6: 0 | I6: Barrandov | K6: 8.5 | L6: 7.5 | M6: 19 | N6: =SUM(J6:M6) -> 35 | S6: Barrandov | U6: =K6+K14+K22+K30+K38+K46+K54+K62 -> 81 | V6: =L6+L14+L22+L30+L38+L46+L54+L62 -> 70 | W6: =M6+M14+M22+M30+M38+M46+M54+M62 -> 85.5 | X6: =SUM(U6:W6) -> 236.5
B7: 28 | C7: : | D7: 4 | E7: => | F7: 28 | I7: COSP | J7: 11.5 | L7: 4.5 | M7: 15.5 | N7: =SUM(J7:M7) -> 31.5 | S7: COSP | T7: =J7+J15+J23+J31+J39+J47+J55+J63 -> 85 | V7: =L7+L23+L15+L31+L39+L47+L55+L63 -> 76 | W7: =M7+M15+M23+M31+M39+M47+M55+M63 -> 103 | X7: =SUM(T7:W7) -> 264
B8: 5 | C8: : | D8: 21 | E8: => | F8: 21 | I8: Resonances | J8: 12.5 | K8: 15.5 | M8: 12.5 | N8: 40.5 | S8: Ressonances | T8: =J8+J16+J24+J32+J40+J48+J56+J64 -> 94 | U8: =K8+K16+K24+K32+K40+K48+K56+K64 -> 84 | W8: =M8+M16+M24+M40+M32+M48+M56+M64 -> 84.5 | X8: =SUM(T8:W8) -> 262.5
B9: 30 | C9: : | D9: 14 | E9: => | F9: 0 | I9: Sounddirect | J9: 1 | K9: 4.5 | L9: 3.5 | N9: 9 | S9: Sounddirect | T9: =J9+J17+J25+J33+J41+J49+J57+J65 -> 63.5 | U9: =K9+K17+K25+K33+K41+K49+K57+K65 -> 57 | V9: =L9+L17+L25+L33+L41+L49+L57+L65 -> 64.5 | X9: 185
B10: 7 | C10: : | D10: 15 | E10: => | F10: 15 | I10: Vlčí Jáma
B11: 16 | C11: : | D11: 24 | E11: => | F11: 0
B12: 17 | C12: : | D12: 25 | E12: => | F12: 17 | I12: Dialog ženy - hudba v pozadí | S12: C. a k. polní maršálek
B13: 10 | C13: : | D13: 18 | E13: => | F13: 18 | I13: Metoda | J13: Barrandov | K13: COSP | L13: Resonances | M13: Sounddirect | N13: Součet | S13: Metoda | T13: Barrandov | U13: COSP | V13: Ressonances | W13: Sounddirect | X13: Součet
B14: 27 | C14: : | D14: 3 | E14: => | F14: 27 | I14: Barrandov | K14: 11 | L14: 9 | M14: 5.5 | N14: =SUM(J14:M14) -> 25.5 | S14: Barrandov | U14: =K22+K46 -> 29 | V14: =L22+L46 -> 25 | W14: 15.5 | X14: =SUM(U14:W14) -> 69.5
B15: 4 | C15: : | D15: 20 | E15: => | F15: 4 | I15: COSP | J15: 9 | L15: 6 | M15: 6.5 | N15: =SUM(J15:M15) -> 21.5 | S15: COSP | T15: =J23+J47 -> 17 | V15: =L23+L47 -> 28 | W15: =M23+M47 -> 19.5 | X15: =SUM(T15:W15) -> 64.5
B16: 29 | C16: : | D16: 13 | E16: => | F16: 13 | I16: Resonances | J16: 15 | K16: 14 | M16: 6.5 | N16: 35.5 | S16: Ressonances | T16: =J24+J48 -> 15 | U16: =K24+K48 -> 12 | W16: 20 | X16: =SUM(T16:W16) -> 47
B17: 6 | C17: : | D17: 14 | E17: => | F17: 0 | I17: Sounddirect | J17: 3.5 | K17: 13.5 | L17: 6.5 | N17: 23.5 | S17: Sounddirect | T17: 24.5 | U17: 20.5 | V17: 20 | X17: 65
B18: 23 | C18: : | D18: 31 | E18: => | F18: 23 | I18: Markéta Lazarová
B19: 32 | C19: : | D19: 8 | E19: => | F19: 8
B20: 9 | C20: : | D20: 17 | E20: => | F20: 17 | I20: Monolog muž - hudba v pozadí | S20: Jedenácté přikázání
B21: 26 | C21: : | D21: 2 | E21: => | F21: 2 | I21: Metoda | J21: Barrandov | K21: COSP | L21: Resonances | M21: Sounddirect | N21: Součet | S21: Metoda | T21: Barrandov | U21: COSP | V21: Ressonances | W21: Sounddirect | X21: Součet
B22: 3 | C22: : | D22: 19 | E22: => | F22: 3 | I22: Barrandov | K22: 14 | L22: 15.5 | M22: 8 | N22: =SUM(J22:M22) -> 37.5 | S22: Barrandov | U22: =K30+K54 -> 6 | V22: =L30+L54 -> 20.5 | W22: 11.5 | X22: =SUM(U22:W22) -> 38
B23: 28 | C23: : | D23: 12 | E23: => | F23: 0 | I23: COSP | J23: 12 | L23: 16.5 | M23: 10.5 | N23: =SUM(J23:M23) -> 39 | S23: COSP | T23: =J31+J55 -> 14 | V23: 18 | W23: 27 | X23: =SUM(T23:W23) -> 59
B24: 5 | C24: : | D24: 13 | E24: => | F24: 13 | I24: Resonances | J24: 4.5 | K24: 3.5 | M24: 10.5 | N24: 18.5 | S24: Ressonances | T24: =J32+J56 -> 19.5 | U24: 22 | W24: 21.5 | X24: =SUM(T24:W24) -> 63
B25: 22 | C25: : | D25: 30 | E25: => | F25: 0 | I25: Sounddirect | J25: 12 | K25: 9.5 | L25: 9.5 | N25: 31 | S25: Sounddirect | T25: 28.5 | U25: =K33+K57 -> 13 | V25: =L33+L57 -> 18.5 | X25: 60
B26: 15 | C26: : | D26: 23 | E26: => | F26: 15 | I26: C. a k. polní maršálek
B27: 8 | C27: : | D27: 24 | E27: => | F27: 24
B28: 25 | C28: : | D28: 1 | E28: => | F28: 1 | I28: Zpěv žena - hudba v pozadí | S28: Vlčí Jáma
B29: 2 | C29: : | D29: 18 | E29: => | F29: 2 | I29: Metoda | J29: Barrandov | K29: COSP | L29: Resonances | M29: Sounddirect | N29: Součet | S29: Metoda | T29: Barrandov | U29: COSP | V29: Ressonances | W29: Sounddirect | X29: Součet
B30: 27 | C30: : | D30: 11 | E30: => | F30: 0 | I30: Barrandov | K30: 6 | L30: 14.5 | M30: 5 | N30: =SUM(J30:M30) -> 25.5 | S30: Barrandov | U30: =K6+K62 -> 30.5 | V30: =L6+L62 -> 11.5 | W30: 37 | X30: =SUM(T30:W30) -> 79
B31: 4 | C31: : | D31: 12 | E31: => | F31: 12 | I31: COSP | J31: 14 | L31: 10 | M31: 12.5 | N31: =SUM(J31:M31) -> 36.5 | S31: COSP | T31: =J7+J63 -> 29.5 | V31: 15 | W31: 35.5 | X31: =SUM(T31:W31) -> 80
B32: 21 | C32: : | D32: 29 | E32: => | F32: 21 | I32: Resonances | J32: 5.5 | K32: 10 | M32: 9 | N32: 24.5 | S32: Ressonances | T32: =J8+J64 -> 28.5 | U32: 25 | W32: 26 | X32: =SUM(T32:W32) -> 79.5
B33: 14 | C33: : | D33: 22 | E33: => | F33: 0 | I33: Sounddirect | J33: 15 | K33: 7.5 | L33: 11 | N33: 33.5 | S33: Sounddirect | T33: 3 | U33: =K9+K65 -> 4.5 | V33: =L9+L65 -> 10 | X33: 17.5
B34: 31 | C34: : | D34: 7 | E34: => | F34: 31 | I34: Jedenácté přikázání
B35: 32 | C35: : | D35: 16 | E35: => | F35: 16
B36: 1 | C36: : | D36: 17 | E36: => | F36: 17 | I36: Monolog muž - tiché pozadí | S36: Markéta Lazarová
B37: 26 | C37: : | D37: 18 | E37: => | F37: 10 | I37: Metoda | J37: Barrandov | K37: COSP | L37: Resonances | M37: Sounddirect | N37: Součet | S37: Metoda | T37: Barrandov | U37: COSP | V37: Ressonances | W37: Sounddirect | X37: Součet
B38: 3 | C38: : | D38: 11 | E38: => | F38: 3 | I38: Barrandov | K38: 4.5 | L38: 4 | M38: 16 | N38: =SUM(J38:M38) -> 24.5 | S38: Barrandov | U38: =K14+K38 -> 15.5 | V38: =L14+L38 -> 13 | W38: 21.5 | X38: =SUM(T38:W38) -> 50
B39: 20 | C39: : | D39: 28 | E39: => | F39: 28 | I39: COSP | J39: 15.5 | L39: 9 | M39: 14.5 | N39: =SUM(J39:M39) -> 39 | S39: COSP | T39: =J15+J63 -> 27 | V39: 15 | W39: 21 | X39: =SUM(T39:W39) -> 63
B40: 13 | C40: : | D40: 21 | E40: => | F40: 13 | I40: Resonances | J40: 16 | K40: 11 | M40: 10.5 | N40: 37.5 | S40: Ressonances | T40: =J16+J64 -> 31 | U40: 23.5 | W40: 17 | X40: 71.5
B41: 30 | C41: : | D41: 6 | E41: => | F41: 30 | I41: Sounddirect | J41: 4 | K41: 5.5 | L41: 9.5 | N41: 19 | S41: Sounddirect | T41: 5.5 | U41: =K17+K65 -> 13.5 | V41: =L17+L65 -> 13 | X41: 32
B42: 7 | C42: : | D42: 23 | E42: => | F42: 7 | I42: Markéta Lazarová
B43: 8 | C43: : | D43: 16 | E43: => | F43: 8
B44: 25 | C44: : | D44: 9 | E44: => | F44: 25 | I44: Monolog muž - tiché pozadí
B45: 2 | C45: : | D45: 10 | E45: => | F45: 2 | I45: Metoda | J45: Barrandov | K45: COSP | L45: Resonances | M45: Sounddirect | N45: Součet
B46: 19 | C46: : | D46: 27 | E46: => | F46: 0 | I46: Barrandov | K46: 15 | L46: 9.5 | M46: 7.5 | N46: =SUM(J46:M46) -> 32
B47: 12 | C47: : | D47: 20 | E47: => | F47: 12 | I47: COSP | J47: 5 | L47: 11.5 | M47: 9 | N47: =SUM(J47:M47) -> 25.5
B48: 29 | C48: : | D48: 5 | E48: => | F48: 29 | I48: Resonances | J48: 10.5 | K48: 8.5 | M48: 9.5 | N48: 28.5
B49: 6 | C49: : | D49: 22 | E49: => | F49: 0 | I49: Sounddirect | J49: 12.5 | K49: 11 | L49: 10.5 | N49: 34
B50: 31 | C50: : | D50: 15 | E50: => | F50: 31 | I50: C. a k. polní maršálek
B51: 24 | C51: : | D51: 32 | E51: => | F51: 24
D52: Sloupec pro hodnoty k zpracování | I52: Dialog muži - tiché pozadí
I53: Metoda | J53: Barrandov | K53: COSP | L53: Resonances | M53: Sounddirect | N53: Součet
I54: Barrandov | K54: 0 | L54: 6 | M54: 6.5 | N54: =SUM(J54:M54) -> 12.5
I55: COSP | J55: 0 | L55: 8 | M55: 14.5 | N55: =SUM(J55:M55) -> 22.5
I56: Resonances | J56: 14 | K56: 12 | M56: 12.5 | N56: 38.5
I57: Sounddirect | J57: 13.5 | K57: 5.5 | L57: 7.5 | N57: 26.5
I58: Jedenácté přikázání
I60: Dialog muž a žena - tiché pozadí
I61: Metoda | J61: Barrandov | K61: COSP | L61: Resonances | M61: Sounddirect | N61: Součet
I62: Barrandov | K62: 22 | L62: 4 | M62: 18 | N62: =SUM(J62:M62) -> 44
I63: COSP | J63: 18 | L63: 10.5 | M63: 20 | N63: =SUM(J63:M63) -> 48.5
I64: Resonances | J64: 16 | K64: 9.5 | M64: 13.5 | N64: 39
I65: Sounddirect | J65: 2 | K65: 0 | L65: 6.5 | N65: 8.5
I66: Vlčí Jáma

Sheet Grafy
E3: C. a k. polní maršálek
R13: Barrandov
R14: COSP
R15: Resonances
R16: Sounddirect
E19: Vlčí jáma
E35: Jedenácté přikázání
E52: Markéta Lazarová
E69: Souhrn

Sheet ANOVA data
B2: C. a k. polní maršálek
B4: Celkově | H4: Celkově | N4: Celkově | W4: Celkově
B5: Posluchač | C5: Barrandov | D5: COSP | E5: Resonances | F5: Sounddirect | H5: Posluchač | I5: Barrandov | J5: COSP | K5: Resonances | L5: Sounddirect | N5: Posluchač | O5: Barrandov | P5: COSP | Q5: Resonances | R5: Sounddirect | W5: Posluchač | X5: Barrandov | Y5: COSP | Z5: Resonances | AA5: Sounddirect
B6: 1 | C6: 2 | D6: 1 | E6: 1 | F6: 2 | H6: 1 | I6: 1 | J6: 1.5 | K6: 1.5 | L6: 2 | N6: 1 | O6: 3 | P6: 2.5 | Q6: 2.5 | R6: 4 | W6: 1 | X6: 11.5 | Y6: 11 | Z6: 13 | AA6: 11.5
B7: 2 | C7: 2.5 | D7: 1.5 | E7: 1 | F7: 2 | H7: 2 | I7: 2 | J7: 0.5 | K7: 1.5 | L7: 2 | N7: 2 | O7: 4.5 | P7: 2 | Q7: 2.5 | R7: 4 | W7: 2 | X7: 16.5 | Y7: 10.5 | Z7: 17 | AA7: 7
B8: 3 | C8: 2 | D8: 1 | E8: 1 | F8: 2 | H8: 3 | I8: 1 | J8: 1.5 | K8: 1.5 | L8: 2 | N8: 3 | O8: 3 | P8: 2.5 | Q8: 2.5 | R8: 4 | W8: 3 | X8: 11.5 | Y8: 11 | Z8: 13 | AA8: 11.5
B9: 4 | C9: 3 | D9: 2 | E9: 1 | F9: 0 | H9: 4 | I9: 3 | J9: 1 | K9: 1 | L9: 1 | N9: 4 | O9: 6 | P9: 3 | Q9: 2 | R9: 1 | W9: 4 | X9: 15 | Y9: 13.5 | Z9: 11.5 | AA9: 8
B10: 5 | C10: 2 | D10: 2 | E10: 1 | F10: 1 | H10: 5 | I10: 2 | J10: 1 | K10: 1 | L10: 2 | N10: 5 | O10: 4 | P10: 3 | Q10: 2 | R10: 3 | W10: 5 | X10: 13.5 | Y10: 13 | Z10: 12 | AA10: 7.5
B11: 6 | C11: 1.5 | D11: 2.5 | E11: 0.5 | F11: 1.5 | H11: 6 | I11: 1.5 | J11: 1 | K11: 1.5 | L11: 2 | N11: 6 | O11: 3 | P11: 3.5 | Q11: 2 | R11: 3.5 | W11: 6 | X11: 10.5 | Y11: 12.5 | Z11: 15 | AA11: 9
B12: 7 | C12: 1 | D12: 2 | E12: 0.5 | F12: 2.5 | H12: 7 | I12: 2 | J12: 1.5 | K12: 1 | L12: 1.5 | N12: 7 | O12: 3 | P12: 3.5 | Q12: 1.5 | R12: 4 | W12: 7 | X12: 13.5 | Y12: 9.5 | Z12: 15.5 | AA12: 9.5
B13: 8 | C13: 3 | D13: 1 | E13: 2 | F13: 1 | H13: 8 | I13: 2 | J13: 2 | K13: 0 | L13: 2 | N13: 8 | O13: 5 | P13: 3 | Q13: 2 | R13: 3 | W13: 8 | X13: 14 | Y13: 12 | Z13: 10 | AA13: 12
B14: 9 | C14: 1 | D14: 2 | E14: 0 | F14: 3 | H14: 9 | I14: 1.5 | J14: 0.5 | K14: 2 | L14: 2 | N14: 9 | O14: 2.5 | P14: 2.5 | Q14: 2 | R14: 5 | W14: 9 | X14: 9.5 | Y14: 13 | Z14: 12.5 | AA14: 12
B15: 10 | C15: 0.5 | D15: 3 | E15: 1 | F15: 1.5 | H15: 10 | I15: 1 | J15: 1.5 | K15: 1.5 | L15: 2 | N15: 10 | O15: 1.5 | P15: 4.5 | Q15: 2.5 | R15: 3.5 | W15: 10 | X15: 8 | Y15: 15 | Z15: 15.5 | AA15: 7.5
B16: 11 | C16: 1.5 | D16: 2.5 | E16: 1 | F16: 1 | H16: 11 | I16: 1.5 | J16: 2 | K16: 1 | L16: 1.5 | N16: 11 | O16: 3 | P16: 4.5 | Q16: 2 | R16: 2.5 | W16: 11 | X16: 11 | Y16: 11 | Z16: 14.5 | AA16: 10.5
B17: 12 | C17: 0.5 | D17: 3 | E17: 1 | F17: 1.5 | H17: 12 | I17: 1 | J17: 1.5 | K17: 1.5 | L17: 2 | N17: 12 | O17: 1.5 | P17: 4.5 | Q17: 2.5 | R17: 3.5 | W17: 12 | X17: 8 | Y17: 15 | Z17: 15.5 | AA17: 7.5
B18: 13 | C18: 3.5 | D18: 2 | E18: 0.5 | F18: 1 | H18: 13 | I18: 2 | J18: 1 | K18: 2.5 | L18: 0.5 | N18: 13 | O18: 5.5 | P18: 3 | Q18: 3 | R18: 1.5 | W18: 13 | X18: 16 | Y18: 14 | Z18: 11 | AA18: 8
B19: 14 | C19: 2 | D19: 0 | E19: 1.5 | F19: 2.5 | H19: 14 | I19: 2 | J19: 1 | K19: 1.5 | L19: 1.5 | N19: 14 | O19: 4 | P19: 1 | Q19: 3 | R19: 4 | W19: 14 | X19: 16.5 | Y19: 14 | Z19: 8 | AA19: 8.5
B20: 15 | C20: 3.5 | D20: 2 | E20: 0.5 | F20: 1 | H20: 15 | I20: 2 | J20: 1 | K20: 2.5 | L20: 0.5 | N20: 15 | O20: 5.5 | P20: 3 | Q20: 3 | R20: 1.5 | W20: 15 | X20: 16 | Y20: 14 | Z20: 11 | AA20: 8
B21: 16 | C21: 1 | D21: 3 | E21: 2 | F21: 1 | H21: 16 | I21: 2 | J21: 1.5 | K21: 1 | L21: 1.5 | N21: 16 | O21: 3 | P21: 4.5 | Q21: 3 | R21: 2.5 | W21: 16 | X21: 9 | Y21: 15.5 | Z21: 12 | AA21: 9.5
B22: 17 | C22: 0.5 | D22: 3 | E22: 1 | F22: 1.5 | H22: 17 | I22: 1 | J22: 1.5 | K22: 1.5 | L22: 2 | N22: 17 | O22: 1.5 | P22: 4.5 | Q22: 2.5 | R22: 3.5 | W22: 17 | X22: 8 | Y22: 15 | Z22: 15.5 | AA22: 7.5
B23: 18 | C23: 2 | D23: 1 | E23: 1 | F23: 2 | H23: 18 | I23: 0.5 | J23: 2.5 | K23: 2 | L23: 1 | N23: 18 | O23: 2.5 | P23: 3.5 | Q23: 3 | R23: 3 | W23: 18 | X23: 7.5 | Y23: 17.5 | Z23: 11 | AA23: 11
B24: 19 | C24: 2 | D24: 2.5 | E24: 0.5 | F24: 1 | H24: 19 | I24: 2 | J24: 0 | K24: 1 | L24: 3 | N24: 19 | O24: 4 | P24: 2.5 | Q24: 1.5 | R24: 4 | W24: 19 | X24: 9 | Y24: 15.5 | Z24: 15 | AA24: 8.5
B25: 20 | C25: 2.5 | D25: 2 | E25: 0.5 | F25: 2 | H25: 20 | I25: 1 | J25: 1.5 | K25: 1.5 | L25: 2 | N25: 20 | O25: 3.5 | P25: 3.5 | Q25: 2 | R25: 4 | W25: 20 | X25: 12 | Y25: 11.5 | Z25: 14 | AA25: 10.5
B28: Jedenácté přikázání
B30: Celkově | H30: Celkově | N30: Celkově
B31: Posluchač | C31: Barrandov | D31: COSP | E31: Resonances | F31: Sounddirect | H31: Posluchač | I31: Barrandov | J31: COSP | K31: Resonances | L31: Sounddirect | N31: Posluchač | O31: Barrandov | P31: COSP | Q31: Resonances | R31: Sounddirect
B32: 1 | C32: 1 | D32: 2.5 | E32: 0 | F32: 2.5 | H32: 1 | I32: 1 | J32: 1 | K32: 1 | L32: 2 | N32: 1 | O32: 2 | P32: 3.5 | Q32: 1 | R32: 4.5
B33: 2 | C33: 1 | D33: 3 | E33: 2 | F33: 0 | H33: 2 | I33: 0 | J33: 1.5 | K33: 2.5 | L33: 1 | N33: 2 | O33: 1 | P33: 4.5 | Q33: 4.5 | R33: 1
B34: 3 | C34: 1 | D34: 2.5 | E34: 0 | F34: 2.5 | H34: 3 | I34: 1 | J34: 1 | K34: 1 | L34: 2 | N34: 3 | O34: 2 | P34: 3.5 | Q34: 1 | R34: 4.5
B35: 4 | C35: 1 | D35: 3 | E35: 1 | F35: 1 | H35: 4 | I35: 0 | J35: 2 | K35: 2 | L35: 1 | N35: 4 | O35: 1 | P35: 5 | Q35: 3 | R35: 2
B36: 5 | C36: 2 | D36: 2 | E36: 1 | F36: 1 | H36: 5 | I36: 1 | J36: 2 | K36: 0 | L36: 2 | N36: 5 | O36: 3 | P36: 4 | Q36: 1 | R36: 3
B37: 6 | C37: 1.5 | D37: 2 | E37: 1 | F37: 1.5 | H37: 6 | I37: 1 | J37: 1 | K37: 2 | L37: 1 | N37: 6 | O37: 2.5 | P37: 3 | Q37: 3 | R37: 2.5
B38: 7 | C38: 2 | D38: 1 | E38: 1.5 | F38: 1.5 | H38: 7 | I38: 0.5 | J38: 1 | K38: 3 | L38: 0.5 | N38: 7 | O38: 2.5 | P38: 2 | Q38: 4.5 | R38: 2
B39: 8 | C39: 2 | D39: 0 | E39: 2 | F39: 2 | H39: 8 | I39: 1 | J39: 1 | K39: 1 | L39: 2 | N39: 8 | O39: 3 | P39: 1 | Q39: 3 | R39: 4
B40: 9 | C40: 0.5 | D40: 2 | E40: 1.5 | F40: 2 | H40: 9 | I40: 0.5 | J40: 1 | K40: 3 | L40: 0.5 | N40: 9 | O40: 1 | P40: 3 | Q40: 4.5 | R40: 2.5
B41: 10 | C41: 1 | D41: 2 | E41: 2 | F41: 1 | H41: 10 | I41: 1 | J41: 0.5 | K41: 3 | L41: 0.5 | N41: 10 | O41: 2 | P41: 2.5 | Q41: 5 | R41: 1.5
B42: 11 | C42: 2 | D42: 0.5 | E42: 0.5 | F42: 3 | H42: 11 | I42: 0.5 | J42: 0.5 | K42: 2.5 | L42: 1.5 | N42: 11 | O42: 2.5 | P42: 1 | Q42: 3 | R42: 4.5
B43: 12 | C43: 1 | D43: 2 | E43: 2 | F43: 1 | H43: 12 | I43: 1 | J43: 0.5 | K43: 3 | L43: 0.5 | N43: 12 | O43: 2 | P43: 2.5 | Q43: 5 | R43: 1.5
B44: 13 | C44: 1.5 | D44: 1 | E44: 1 | F44: 2.5 | H44: 13 | I44: 0 | J44: 1.5 | K44: 1.5 | L44: 2 | N44: 13 | O44: 1.5 | P44: 2.5 | Q44: 2.5 | R44: 4.5
B45: 14 | C45: 1.5 | D45: 2 | E45: 1 | F45: 1.5 | H45: 14 | I45: 1 | J45: 1.5 | K45: 2 | L45: 0.5 | N45: 14 | O45: 2.5 | P45: 3.5 | Q45: 3 | R45: 2
B46: 15 | C46: 1.5 | D46: 1 | E46: 1 | F46: 2.5 | H46: 15 | I46: 0 | J46: 1.5 | K46: 1.5 | L46: 2 | N46: 15 | O46: 1.5 | P46: 2.5 | Q46: 2.5 | R46: 4.5
B47: 16 | C47: 2 | D47: 2 | E47: 0 | F47: 2 | H47: 16 | I47: 1 | J47: 1 | K47: 1 | L47: 2 | N47: 16 | O47: 3 | P47: 3 | Q47: 1 | R47: 4
B48: 17 | C48: 1 | D48: 2 | E48: 2 | F48: 1 | H48: 17 | I48: 1 | J48: 0.5 | K48: 3 | L48: 0.5 | N48: 17 | O48: 2 | P48: 2.5 | Q48: 5 | R48: 1.5
B49: 18 | C49: 1 | D49: 1 | E49: 2 | F49: 2 | H49: 18 | I49: 0 | J49: 2 | K49: 1 | L49: 2 | N49: 18 | O49: 1 | P49: 3 | Q49: 3 | R49: 4
B50: 19 | C50: 1 | D50: 2 | E50: 2 | F50: 1 | H50: 19 | I50: 1 | J50: 0 | K50: 3 | L50: 1 | N50: 19 | O50: 2 | P50: 2 | Q50: 5 | R50: 2
B51: 20 | C51: 0 | D51: 3 | E51: 1 | F51: 2 | H51: 20 | I51: 0 | J51: 1.5 | K51: 1.5 | L51: 2 | N51: 20 | O51: 0 | P51: 4.5 | Q51: 2.5 | R51: 4
B54: Vlčí jáma
B56: Celkově | H56: Celkově | N56: Celkově
B57: Posluchač | C57: Barrandov | D57: COSP | E57: Resonances | F57: Sounddirect | H57: Posluchač | I57: Barrandov | J57: COSP | K57: Resonances | L57: Sounddirect | N57: Posluchač | O57: Barrandov | P57: COSP | Q57: Resonances | R57: Sounddirect
B58: 1 | C58: 1.5 | D58: 0.5 | E58: 3 | F58: 1 | H58: 1 | I58: 3 | J58: 1.5 | K58: 2.5 | L58: 0 | N58: 1 | O58: 4.5 | P58: 2 | Q58: 5.5 | R58: 1
B59: 2 | C59: 3 | D59: 1 | E59: 2 | F59: 0 | H59: 2 | I59: 4 | J59: 1 | K59: 2 | L59: 0 | N59: 2 | O59: 7 | P59: 2 | Q59: 4 | R59: 0
B60: 3 | C60: 1.5 | D60: 0.5 | E60: 3 | F60: 1 | H60: 3 | I60: 3 | J60: 1.5 | K60: 2.5 | L60: 0 | N60: 3 | O60: 4.5 | P60: 2 | Q60: 5.5 | R60: 1
B61: 4 | C61: 3 | D61: 2 | E61: 1 | F61: 1 | H61: 4 | I61: 3 | J61: 1.5 | K61: 2.5 | L61: 0 | N61: 4 | O61: 6 | P61: 3.5 | Q61: 3.5 | R61: 1
B62: 5 | C62: 3 | D62: 1 | E62: 2 | F62: 0 | H62: 5 | I62: 3 | J62: 2 | K62: 2 | L62: 0 | N62: 5 | O62: 6 | P62: 3 | Q62: 4 | R62: 0
B63: 6 | C63: 2 | D63: 1 | E63: 3 | F63: 0 | H63: 6 | I63: 1 | J63: 3 | K63: 3 | L63: 0 | N63: 6 | O63: 3 | P63: 4 | Q63: 6 | R63: 0
B64: 7 | C64: 2 | D64: 1 | E64: 3 | F64: 0 | H64: 7 | I64: 3 | J64: 2 | K64: 2 | L64: 0 | N64: 7 | O64: 5 | P64: 3 | Q64: 5 | R64: 0
B65: 8 | C65: 3 | D65: 0 | E65: 1 | F65: 2 | H65: 8 | I65: 0 | J65: 4 | K65: 2 | L65: 1 | N65: 8 | O65: 3 | P65: 4 | Q65: 3 | R65: 3
B66: 9 | C66: 1 | D66: 3 | E66: 2 | F66: 0 | H66: 9 | I66: 3 | J66: 2 | K66: 1 | L66: 1 | N66: 9 | O66: 4 | P66: 5 | Q66: 3 | R66: 1
B67: 10 | C67: 1 | D67: 2 | E67: 2 | F67: 0 | H67: 10 | I67: 1 | J67: 3 | K67: 2 | L67: 1 | N67: 10 | O67: 2 | P67: 5 | Q67: 4 | R67: 1
B68: 11 | C68: 2 | D68: 1 | E68: 2 | F68: 1 | H68: 11 | I68: 2 | J68: 2 | K68: 3 | L68: 0 | N68: 11 | O68: 4 | P68: 3 | Q68: 5 | R68: 1
B69: 12 | C69: 1 | D69: 2 | E69: 2 | F69: 0 | H69: 12 | I69: 1 | J69: 3 | K69: 2 | L69: 1 | N69: 12 | O69: 2 | P69: 5 | Q69: 4 | R69: 1
B70: 13 | C70: 2 | D70: 2 | E70: 2 | F70: 0 | H70: 13 | I70: 3 | J70: 2 | K70: 2 | L70: 0 | N70: 13 | O70: 5 | P70: 4 | Q70: 4 | R70: 0
B71: 14 | C71: 2 | D71: 3 | E71: 1 | F71: 0 | H71: 14 | I71: 4 | J71: 2 | K71: 0.5 | L71: 0.5 | N71: 14 | O71: 6 | P71: 5 | Q71: 1.5 | R71: 0.5
B72: 15 | C72: 2 | D72: 2 | E72: 2 | F72: 0 | H72: 15 | I72: 3 | J72: 2 | K72: 2 | L72: 0 | N72: 15 | O72: 5 | P72: 4 | Q72: 4 | R72: 0
B73: 16 | C73: 0 | D73: 2 | E73: 2 | F73: 1 | H73: 16 | I73: 1 | J73: 4 | K73: 1 | L73: 1 | N73: 16 | O73: 1 | P73: 6 | Q73: 3 | R73: 2
B74: 17 | C74: 1 | D74: 2 | E74: 2 | F74: 0 | H74: 17 | I74: 1 | J74: 3 | K74: 2 | L74: 1 | N74: 17 | O74: 2 | P74: 5 | Q74: 4 | R74: 1
B75: 18 | C75: 1 | D75: 3 | E75: 1 | F75: 1 | H75: 18 | I75: 1 | J75: 4 | K75: 0 | L75: 2 | N75: 18 | O75: 2 | P75: 7 | Q75: 1 | R75: 3
B76: 19 | C76: 1 | D76: 2 | E76: 3 | F76: 0 | H76: 19 | I76: 1 | J76: 4 | K76: 2 | L76: 0 | N76: 19 | O76: 2 | P76: 6 | Q76: 5 | R76: 0
B77: 20 | C77: 2 | D77: 0.5 | E77: 1.5 | F77: 1 | H77: 20 | I77: 3 | J77: 1 | K77: 3 | L77: 0 | N77: 20 | O77: 5 | P77: 1.5 | Q77: 4.5 | R77: 1
B80: Markéta Lazarová
B82: Celkově | H82: Celkově | N82: Celkově
B83: Posluchač | C83: Barrandov | D83: COSP | E83: Resonances | F83: Sounddirect | H83: Posluchač | I83: Barrandov | J83: COSP | K83: Resonances | L83: Sounddirect | N83: Posluchač | O83: Barrandov | P83: COSP | Q83: Resonances | R83: Sounddirect
B84: 1 | C84: 2 | D84: 0 | E84: 2 | F84: 1 | H84: 1 | I84: 0 | J84: 3 | K84: 2 | L84: 1 | N84: 1 | O84: 2 | P84: 3 | Q84: 4 | R84: 2
B85: 2 | C85: 2 | D85: 1 | E85: 3 | F85: 2 | H85: 2 | I85: 2 | J85: 1 | K85: 3 | L85: 0 | N85: 2 | O85: 4 | P85: 2 | Q85: 6 | R85: 2
B86: 3 | C86: 2 | D86: 0 | E86: 2 | F86: 1 | H86: 3 | I86: 0 | J86: 3 | K86: 2 | L86: 1 | N86: 3 | O86: 2 | P86: 3 | Q86: 4 | R86: 2
B87: 4 | C87: 1 | D87: 1 | E87: 1 | F87: 2 | H87: 4 | I87: 1 | J87: 1 | K87: 2 | L87: 2 | N87: 4 | O87: 2 | P87: 2 | Q87: 3 | R87: 4
B88: 5 | C88: 0 | D88: 1 | E88: 2 | F88: 1 | H88: 5 | I88: 0.5 | J88: 2 | K88: 3 | L88: 0.5 | N88: 5 | O88: 0.5 | P88: 3 | Q88: 5 | R88: 1.5
B89: 6 | C89: 1 | D89: 0 | E89: 2 | F89: 2 | H89: 6 | I89: 1 | J89: 2 | K89: 2 | L89: 1 | N89: 6 | O89: 2 | P89: 2 | Q89: 4 | R89: 3
B90: 7 | C90: 2 | D90: 0 | E90: 2.5 | F90: 1.5 | H90: 7 | I90: 1 | J90: 1 | K90: 2 | L90: 2 | N90: 7 | O90: 3 | P90: 1 | Q90: 4.5 | R90: 3.5
B91: 8 | C91: 1 | D91: 2 | E91: 1 | F91: 1 | H91: 8 | I91: 2 | J91: 2 | K91: 1 | L91: 1 | N91: 8 | O91: 3 | P91: 4 | Q91: 2 | R91: 2
B92: 9 | C92: 1 | D92: 1 | E92: 1.5 | F92: 1.5 | H92: 9 | I92: 1 | J92: 1.5 | K92: 1.5 | L92: 2 | N92: 9 | O92: 2 | P92: 2.5 | Q92: 3 | R92: 3.5
B93: 10 | C93: 1 | D93: 1.5 | E93: 2 | F93: 0.5 | H93: 10 | I93: 1.5 | J93: 1.5 | K93: 2 | L93: 1 | N93: 10 | O93: 2.5 | P93: 3 | Q93: 4 | R93: 1.5
B94: 11 | C94: 1 | D94: 1 | E94: 2 | F94: 1 | H94: 11 | I94: 0.5 | J94: 1.5 | K94: 2.5 | L94: 1.5 | N94: 11 | O94: 1.5 | P94: 2.5 | Q94: 4.5 | R94: 2.5
B95: 12 | C95: 1 | D95: 1.5 | E95: 2 | F95: 0.5 | H95: 12 | I95: 1.5 | J95: 1.5 | K95: 2 | L95: 1 | N95: 12 | O95: 2.5 | P95: 3 | Q95: 4 | R95: 1.5
B96: 13 | C96: 2 | D96: 1.5 | E96: 1.5 | F96: 1 | H96: 13 | I96: 2 | J96: 3 | K96: 0 | L96: 1 | N96: 13 | O96: 4 | P96: 4.5 | Q96: 1.5 | R96: 2
B97: 14 | C97: 2 | D97: 2 | E97: 0 | F97: 1 | H97: 14 | I97: 2 | J97: 2.5 | K97: 0.5 | L97: 1 | N97: 14 | O97: 4 | P97: 4.5 | Q97: 0.5 | R97: 2
B98: 15 | C98: 2 | D98: 1.5 | E98: 1.5 | F98: 1 | H98: 15 | I98: 2 | J98: 3 | K98: 0 | L98: 1 | N98: 15 | O98: 4 | P98: 4.5 | Q98: 1.5 | R98: 2
B99: 16 | C99: 1 | D99: 0 | E99: 2 | F99: 1 | H99: 16 | I99: 1 | J99: 2 | K99: 3 | L99: 0 | N99: 16 | O99: 2 | P99: 2 | Q99: 5 | R99: 1
B100: 17 | C100: 1 | D100: 1.5 | E100: 2 | F100: 0.5 | H100: 17 | I100: 1.5 | J100: 1.5 | K100: 2 | L100: 1 | N100: 17 | O100: 2.5 | P100: 3 | Q100: 4 | R100: 1.5
B101: 18 | C101: 1 | D101: 1 | E101: 2 | F101: 1 | H101: 18 | I101: 1 | J101: 3 | K101: 2 | L101: 0 | N101: 18 | O101: 2 | P101: 4 | Q101: 4 | R101: 1
B102: 19 | C102: 0 | D102: 3 | E102: 1.5 | F102: 1.5 | H102: 19 | I102: 1 | J102: 2 | K102: 2 | L102: 1 | N102: 19 | O102: 1 | P102: 5 | Q102: 3.5 | R102: 2.5
B103: 20 | C103: 1.5 | D103: 1 | E103: 2 | F103: 1.5 | H103: 20 | I103: 2 | J103: 1 | K103: 3 | L103: 0 | N103: 20 | O103: 3.5 | P103: 2 | Q103: 5 | R103: 1.5
B108: 2 | C108: 1 | D108: 1 | E108: 2 | F108: 1 | G108: 1.5 | H108: 1.5 | I108: 2 | J108: 1 | K108: 2.5 | L108: 0 | M108: 2.5 | N108: 1 | O108: 1 | P108: 1 | Q108: 2 | R108: 1.5 | S108: 0.5 | T108: 3 | U108: 1 | V108: 3 | W108: 1.5 | X108: 2.5 | Y108: 0 | Z108: 2 | AA108: 0 | AB108: 2 | AC108: 1 | AD108: 0 | AE108: 3 | AF108: 2 | AG108: 1 | AH108: =B108+F108+J108+N108+R108+V108+Z108+AD108 -> 11.5 | AI108: =C108+G108+K108+O108+S108+W108+AA108+AE108 -> 11 | AJ108: =D108+H108+L108+P108+T108+X108+AB108+AF108 -> 13 | AK108: =E108+I108+M108+Q108+U108+Y108+AC108+AG108 -> 11.5
B109: 2.5 | C109: 1.5 | D109: 1 | E109: 2 | F109: 2 | G109: 0.5 | H109: 1.5 | I109: 2 | J109: 1 | K109: 3 | L109: 2 | M109: 0 | N109: 0 | O109: 1.5 | P109: 2.5 | Q109: 1 | R109: 3 | S109: 1 | T109: 2 | U109: 0 | V109: 4 | W109: 1 | X109: 2 | Y109: 0 | Z109: 2 | AA109: 1 | AB109: 3 | AC109: 2 | AD109: 2 | AE109: 1 | AF109: 3 | AG109: 0 | AH109: =B109+F109+J109+N109+R109+V109+Z109+AD109 -> 16.5 | AI109: =C109+G109+K109+O109+S109+W109+AA109+AE109 -> 10.5 | AJ109: =D109+H109+L109+P109+T109+X109+AB109+AF109 -> 17 | AK109: =E109+I109+M109+Q109+U109+Y109+AC109+AG109 -> 7
B110: 2 | C110: 1 | D110: 1 | E110: 2 | F110: 1 | G110: 1.5 | H110: 1.5 | I110: 2 | J110: 1 | K110: 2.5 | L110: 0 | M110: 2.5 | N110: 1 | O110: 1 | P110: 1 | Q110: 2 | R110: 1.5 | S110: 0.5 | T110: 3 | U110: 1 | V110: 3 | W110: 1.5 | X110: 2.5 | Y110: 0 | Z110: 2 | AA110: 0 | AB110: 2 | AC110: 1 | AD110: 0 | AE110: 3 | AF110: 2 | AG110: 1 | AH110: 11.5 | AI110: 11 | AJ110: 13 | AK110: 11.5
B111: 3 | C111: 2 | D111: 1 | E111: 0 | F111: 3 | G111: 1 | H111: 1 | I111: 1 | J111: 1 | K111: 3 | L111: 1 | M111: 1 | N111: 0 | O111: 2 | P111: 2 | Q111: 1 | R111: 3 | S111: 2 | T111: 1 | U111: 1 | V111: 3 | W111: 1.5 | X111: 2.5 | Y111: 0 | Z111: 1 | AA111: 1 | AB111: 1 | AC111: 2 | AD111: 1 | AE111: 1 | AF111: 2 | AG111: 2 | AH111: 15 | AI111: 13.5 | AJ111: 11.5 | AK111: 8
B112: 2 | C112: 2 | D112: 1 | E112: 1 | F112: 2 | G112: 1 | H112: 1 | I112: 2 | J112: 2 | K112: 2 | L112: 1 | M112: 1 | N112: 1 | O112: 2 | P112: 0 | Q112: 2 | R112: 3 | S112: 1 | T112: 2 | U112: 0 | V112: 3 | W112: 2 | X112: 2 | Y112: 0 | Z112: 0 | AA112: 1 | AB112: 2 | AC112: 1 | AD112: 0.5 | AE112: 2 | AF112: 3 | AG112: 0.5 | AH112: 13.5 | AI112: 13 | AJ112: 12 | AK112: 7.5
B113: 1.5 | C113: 2.5 | D113: 0.5 | E113: 1.5 | F113: 1.5 | G113: 1 | H113: 1.5 | I113: 2 | J113: 1.5 | K113: 2 | L113: 1 | M113: 1.5 | N113: 1 | O113: 1 | P113: 2 | Q113: 1 | R113: 2 | S113: 1 | T113: 3 | U113: 0 | V113: 1 | W113: 3 | X113: 3 | Y113: 0 | Z113: 1 | AA113: 0 | AB113: 2 | AC113: 2 | AD113: 1 | AE113: 2 | AF113: 2 | AG113: 1 | AH113: 10.5 | AI113: 12.5 | AJ113: 15 | AK113: 9
B114: 1 | C114: 2 | D114: 0.5 | E114: 2.5 | F114: 2 | G114: 1.5 | H114: 1 | I114: 1.5 | J114: 2 | K114: 1 | L114: 1.5 | M114: 1.5 | N114: 0.5 | O114: 1 | P114: 3 | Q114: 0.5 | R114: 2 | S114: 1 | T114: 3 | U114: 0 | V114: 3 | W114: 2 | X114: 2 | Y114: 0 | Z114: 2 | AA114: 0 | AB114: 2.5 | AC114: 1.5 | AD114: 1 | AE114: 1 | AF114: 2 | AG114: 2 | AH114: 13.5 | AI114: 9.5 | AJ114: 15.5 | AK114: 9.5
B115: 3 | C115: 1 | D115: 2 | E115: 1 | F115: 2 | G115: 2 | H115: 0 | I115: 2 | J115: 2 | K115: 0 | L115: 2 | M115: 2 | N115: 1 | O115: 1 | P115: 1 | Q115: 2 | R115: 3 | S115: 0 | T115: 1 | U115: 2 | V115: 0 | W115: 4 | X115: 2 | Y115: 1 | Z115: 1 | AA115: 2 | AB115: 1 | AC115: 1 | AD115: 2 | AE115: 2 | AF115: 1 | AG115: 1 | AH115: 14 | AI115: 12 | AJ115: 10 | AK115: 12
B116: 1 | C116: 2 | D116: 0 | E116: 3 | F116: 1.5 | G116: 0.5 | H116: 2 | I116: 2 | J116: 0.5 | K116: 2 | L116: 1.5 | M116: 2 | N116: 0.5 | O116: 1 | P116: 3 | Q116: 0.5 | R116: 1 | S116: 3 | T116: 2 | U116: 0 | V116: 3 | W116: 2 | X116: 1 | Y116: 1 | Z116: 1 | AA116: 1 | AB116: 1.5 | AC116: 1.5 | AD116: 1 | AE116: 1.5 | AF116: 1.5 | AG116: 2 | AH116: 9.5 | AI116: 13 | AJ116: 12.5 | AK116: 12
B117: 0.5 | C117: 3 | D117: 1 | E117: 1.5 | F117: 1 | G117: 1.5 | H117: 1.5 | I117: 2 | J117: 1 | K117: 2 | L117: 2 | M117: 1 | N117: 1 | O117: 0.5 | P117: 3 | Q117: 0.5 | R117: 1 | S117: 2 | T117: 2 | U117: 0 | V117: 1 | W117: 3 | X117: 2 | Y117: 1 | Z117: 1 | AA117: 1.5 | AB117: 2 | AC117: 0.5 | AD117: 1.5 | AE117: 1.5 | AF117: 2 | AG117: 1 | AH117: 8 | AI117: 15 | AJ117: 15.5 | AK117: 7.5
B118: 1.5 | C118: 2.5 | D118: 1 | E118: 1 | F118: 1.5 | G118: 2 | H118: 1 | I118: 1.5 | J118: 2 | K118: 0.5 | L118: 0.5 | M118: 3 | N118: 0.5 | O118: 0.5 | P118: 2.5 | Q118: 1.5 | R118: 2 | S118: 1 | T118: 2 | U118: 1 | V118: 2 | W118: 2 | X118: 3 | Y118: 0 | Z118: 1 | AA118: 1 | AB118: 2 | AC118: 1 | AD118: 0.5 | AE118: 1.5 | AF118: 2.5 | AG118: 1.5 | AH118: 11 | AI118: 11 | AJ118: 14.5 | AK118: 10.5
B119: 0.5 | C119: 3 | D119: 1 | E119: 1.5 | F119: 1 | G119: 1.5 | H119: 1.5 | I119: 2 | J119: 1 | K119: 2 | L119: 2 | M119: 1 | N119: 1 | O119: 0.5 | P119: 3 | Q119: 0.5 | R119: 1 | S119: 2 | T119: 2 | U119: 0 | V119: 1 | W119: 3 | X119: 2 | Y119: 1 | Z119: 1 | AA119: 1.5 | AB119: 2 | AC119: 0.5 | AD119: 1.5 | AE119: 1.5 | AF119: 2 | AG119: 1 | AH119: 8 | AI119: 15 | AJ119: 15.5 | AK119: 7.5
B120: 3.5 | C120: 2 | D120: 0.5 | E120: 1 | F120: 2 | G120: 1 | H120: 2.5 | I120: 0.5 | J120: 1.5 | K120: 1 | L120: 1 | M120: 2.5 | N120: 0 | O120: 1.5 | P120: 1.5 | Q120: 2 | R120: 2 | S120: 2 | T120: 2 | U120: 0 | V120: 3 | W120: 2 | X120: 2 | Y120: 0 | Z120: 2 | AA120: 1.5 | AB120: 1.5 | AC120: 1 | AD120: 2 | AE120: 3 | AF120: 0 | AG120: 1 | AH120: 16 | AI120: 14 | AJ120: 11 | AK120: 8
B121: 2 | C121: 0 | D121: 1.5 | E121: 2.5 | F121: 2 | G121: 1 | H121: 1.5 | I121: 1.5 | J121: 1.5 | K121: 2 | L121: 1 | M121: 1.5 | N121: 1 | O121: 1.5 | P121: 2 | Q121: 0.5 | R121: 2 | S121: 3 | T121: 1 | U121: 0 | V121: 4 | W121: 2 | X121: 0.5 | Y121: 0.5 | Z121: 2 | AA121: 2 | AB121: 0 | AC121: 1 | AD121: 2 | AE121: 2.5 | AF121: 0.5 | AG121: 1 | AH121: 16.5 | AI121: 14 | AJ121: 8 | AK121: 8.5
B122: 3.5 | C122: 2 | D122: 0.5 | E122: 1 | F122: 2 | G122: 1 | H122: 2.5 | I122: 0.5 | J122: 1.5 | K122: 1 | L122: 1 | M122: 2.5 | N122: 0 | O122: 1.5 | P122: 1.5 | Q122: 2 | R122: 2 | S122: 2 | T122: 2 | U122: 0 | V122: 3 | W122: 2 | X122: 2 | Y122: 0 | Z122: 2 | AA122: 1.5 | AB122: 1.5 | AC122: 1 | AD122: 2 | AE122: 3 | AF122: 0 | AG122: 1 | AH122: 16 | AI122: 14 | AJ122: 11 | AK122: 8
B123: 1 | C123: 3 | D123: 2 | E123: 1 | F123: 2 | G123: 1.5 | H123: 1 | I123: 1.5 | J123: 2 | K123: 2 | L123: 0 | M123: 2 | N123: 1 | O123: 1 | P123: 1 | Q123: 2 | R123: 0 | S123: 2 | T123: 2 | U123: 1 | V123: 1 | W123: 4 | X123: 1 | Y123: 1 | Z123: 1 | AA123: 0 | AB123: 2 | AC123: 1 | AD123: 1 | AE123: 2 | AF123: 3 | AG123: 0 | AH123: 9 | AI123: 15.5 | AJ123: 12 | AK123: 9.5
B124: 0.5 | C124: 3 | D124: 1 | E124: 1.5 | F124: 1 | G124: 1.5 | H124: 1.5 | I124: 2 | J124: 1 | K124: 2 | L124: 2 | M124: 1 | N124: 1 | O124: 0.5 | P124: 3 | Q124: 0.5 | R124: 1 | S124: 2 | T124: 2 | U124: 0 | V124: 1 | W124: 3 | X124: 2 | Y124: 1 | Z124: 1 | AA124: 1.5 | AB124: 2 | AC124: 0.5 | AD124: 1.5 | AE124: 1.5 | AF124: 2 | AG124: 1 | AH124: 8 | AI124: 15 | AJ124: 15.5 | AK124: 7.5
B125: 2 | C125: 1 | D125: 1 | E125: 2 | F125: 0.5 | G125: 2.5 | H125: 2 | I125: 1 | J125: 1 | K125: 1 | L125: 2 | M125: 2 | N125: 0 | O125: 2 | P125: 1 | Q125: 2 | R125: 1 | S125: 3 | T125: 1 | U125: 1 | V125: 1 | W125: 4 | X125: 0 | Y125: 2 | Z125: 1 | AA125: 1 | AB125: 2 | AC125: 1 | AD125: 1 | AE125: 3 | AF125: 2 | AG125: 0 | AH125: 7.5 | AI125: 17.5 | AJ125: 11 | AK125: 11
B126: 2 | C126: 2.5 | D126: 0.5 | E126: 1 | F126: 2 | G126: 0 | H126: 1 | I126: 3 | J126: 1 | K126: 2 | L126: 2 | M126: 1 | N126: 1 | O126: 0 | P126: 3 | Q126: 1 | R126: 1 | S126: 2 | T126: 3 | U126: 0 | V126: 1 | W126: 4 | X126: 2 | Y126: 0 | Z126: 0 | AA126: 3 | AB126: 1.5 | AC126: 1.5 | AD126: 1 | AE126: 2 | AF126: 2 | AG126: 1 | AH126: 9 | AI126: 15.5 | AJ126: 15 | AK126: 8.5
B127: 2.5 | C127: 2 | D127: 0.5 | E127: 2 | F127: 1 | G127: 1.5 | H127: 1.5 | I127: 2 | J127: 0 | K127: 3 | L127: 1 | M127: 2 | N127: 0 | O127: 1.5 | P127: 1.5 | Q127: 2 | R127: 2 | S127: 0.5 | T127: 1.5 | U127: 1 | V127: 3 | W127: 1 | X127: 3 | Y127: 0 | Z127: 1.5 | AA127: 1 | AB127: 2 | AC127: 1.5 | AD127: 2 | AE127: 1 | AF127: 3 | AG127: 0 | AH127: 12 | AI127: 11.5 | AJ127: 14 | AK127: 10.5

Sheet ANOVA výsledky
B2: C. a k. polní maršálek
B3: Ukázka 1 | J3: Ukázka 2 | R3: Souhrn
B4: Anova: jeden faktor | J4: Anova: jeden faktor | R4: Anova: jeden faktor
B6: C. a k. Polní maršálek - ukázka 1: Monolog muž - hudba v pozadí | J6: C. a k. Polní maršálek - ukázka 2: Monolog muž - tiché pozadí | R6: C. a k. Polní maršálek - Souhrn
B7: Výběr | C7: Počet | D7: Součet | E7: Průměr | F7: Rozptyl | J7: Výběr | K7: Počet | L7: Součet | M7: Průměr | N7: Rozptyl | R7: Výběr | S7: Počet | T7: Součet | U7: Průměr | V7: Rozptyl
B8: Barrandov | C8: 20 | D8: 37.5 | E8: 1.875 | F8: 0.8914473684 | J8: Barrandov | K8: 20 | L8: 32 | M8: 1.6 | N8: 0.3578947368 | R8: Barrandov | S8: 20 | T8: 69.5 | U8: 3.475 | V8: 1.775657895
B9: COSP | C9: 20 | D9: 39 | E9: 1.95 | F9: 0.6815789474 | J9: COSP | K9: 20 | L9: 25.5 | M9: 1.275 | N9: 0.3282894737 | R9: COSP | S9: 20 | T9: 64.5 | U9: 3.225 | V9: 0.9072368421
B10: Resonances | C10: 20 | D10: 18.5 | E10: 0.925 | F10: 0.2440789474 | J10: Resonances | K10: 20 | L10: 28.5 | M10: 1.425 | N10: 0.3230263158 | R10: Resonances | S10: 20 | T10: 47 | U10: 2.35 | V10: 0.2394736842
B11: Sounddirect | C11: 20 | D11: 31 | E11: 1.55 | F11: 0.4973684211 | J11: Sounddirect | K11: 20 | L11: 34 | M11: 1.7 | N11: 0.3526315789 | R11: Sounddirect | S11: 20 | T11: 65 | U11: 3.25 | V11: 1.039473684
B14: ANOVA | J14: ANOVA | R14: ANOVA
B15: Zdroj variability | C15: SS | D15: Rozdíl | E15: MS | F15: F | G15: Hodnota P | H15: F krit | J15: Zdroj variability | K15: SS | L15: Rozdíl | M15: MS | N15: F | O15: Hodnota P | P15: F krit | R15: Zdroj variability | S15: SS | T15: Rozdíl | U15: MS | V15: F | W15: Hodnota P | X15: F krit
B16: Mezi výběry | C16: 13.075 | D16: 3 | E16: 4.358333333 | F16: 7.532310025 | G16: 0.0001771955337 | H16: 2.72494392 | J16: Mezi výběry | K16: 2.125 | L16: 3 | M16: 0.7083333333 | N16: 2.080515298 | O16: 0.1098018303 | P16: 2.72494392 | R16: Mezi výběry | S16: 14.775 | T16: 3 | U16: 4.925 | V16: 4.972434407 | W16: 0.003330372773 | X16: 2.72494392
B17: Všechny výběry | C17: 43.975 | D17: 76 | E17: 0.5786184211 | J17: Všechny výběry | K17: 25.875 | L17: 76 | M17: 0.3404605263 | R17: Všechny výběry | S17: 75.275 | T17: 76 | U17: 0.9904605263
B19: Celkem | C19: 57.05 | D19: 79 | J19: Celkem | K19: 28 | L19: 79 | R19: Celkem | S19: 90.05 | T19: 79
B22: Jedenácté přikázání
B23: ukázka 1
B24: Anova: jeden faktor | J24: Anova: jeden faktor | R24: Anova: jeden faktor
B26: Jedenácté přikázání - ukázka 1: Zpěv žena - hudba v pozadí | J26: Jedenácté přikázání - ukázka 2: Dialog muži - tiché pozadí | R26: Jednácté přikázání - Souhrn
B27: Výběr | C27: Počet | D27: Součet | E27: Průměr | F27: Rozptyl | J27: Výběr | K27: Počet | L27: Součet | M27: Průměr | N27: Rozptyl | R27: Výběr | S27: Počet | T27: Součet | U27: Průměr | V27: Rozptyl
B28: Barrandov | C28: 20 | D28: 25.5 | E28: 1.275 | F28: 0.3019736842 | J28: Barrandov | K28: 20 | L28: 12.5 | M28: 0.625 | N28: 0.2072368421 | R28: Barrandov | S28: 20 | T28: 38 | U28: 1.9 | V28: 0.6473684211
B29: COSP | C29: 20 | D29: 36.5 | E29: 1.825 | F29: 0.6914473684 | J29: COSP | K29: 20 | L29: 22.5 | M29: 1.125 | N29: 0.3125 | R29: COSP | S29: 20 | T29: 59 | U29: 2.95 | V29: 1.128947368
B30: Resonances | C30: 20 | D30: 24.5 | E30: 1.225 | F30: 0.5125 | J30: Resonances | K30: 20 | L30: 38.5 | M30: 1.925 | N30: 0.8493421053 | R30: Resonances | S30: 20 | T30: 63 | U30: 3.15 | V30: 2.055263158
B31: Sounddirect | C31: 20 | D31: 33.5 | E31: 1.675 | F31: 0.5598684211 | J31: Sounddirect | K31: 20 | L31: 26.5 | M31: 1.325 | N31: 0.4546052632 | R31: Sounddirect | S31: 20 | T31: 60 | U31: 3 | V31: 1.605263158
B34: ANOVA | J34: ANOVA | R34: ANOVA
B35: Zdroj variability | C35: SS | D35: Rozdíl | E35: MS | F35: F | G35: Hodnota P | H35: F krit | J35: Zdroj variability | K35: SS | L35: Rozdíl | M35: MS | N35: F | O35: Hodnota P | P35: F krit | R35: Zdroj variability | S35: SS | T35: Rozdíl | U35: MS | V35: F | W35: Hodnota P | X35: F krit
B36: Mezi výběry | C36: 5.25 | D36: 3 | E36: 1.75 | F36: 3.388535032 | G36: 0.02226415179 | H36: 2.72494392 | J36: Mezi výběry | K36: 17.35 | L36: 3 | M36: 5.783333333 | N36: 12.68494468 | O36: 8.309335009e-07 | P36: 2.72494392 | R36: Mezi výběry | S36: 19.7 | T36: 3 | U36: 6.566666667 | V36: 4.831235883 | W36: 0.003935698529 | X36: 2.72494392
B37: Všechny výběry | C37: 39.25 | D37: 76 | E37: 0.5164473684 | J37: Všechny výběry | K37: 34.65 | L37: 76 | M37: 0.4559210526 | R37: Všechny výběry | S37: 103.3 | T37: 76 | U37: 1.359210526
B39: Celkem | C39: 44.5 | D39: 79 | J39: Celkem | K39: 52 | L39: 79 | R39: Celkem | S39: 123 | T39: 79
B42: Vlčí jáma
B43: Anova: jeden faktor | J43: Anova: jeden faktor | R43: Anova: jeden faktor
B45: Vlčí jáma - ukázka 1: Dialog muž a žena - hudba v pozadí | J45: Jedenácté přikázání - ukázka 2: Dialog muž a žena - tiché pozadí | R45: Vlčí jáma - Souhrn
B46: Výběr | C46: Počet | D46: Součet | E46: Průměr | F46: Rozptyl | J46: Výběr | K46: Počet | L46: Součet | M46: Průměr | N46: Rozptyl | R46: Výběr | S46: Počet | T46: Součet | U46: Průměr | V46: Rozptyl
B47: Barrandov | C47: 20 | D47: 35 | E47: 1.75 | F47: 0.6973684211 | J47: Barrandov | K47: 20 | L47: 44 | M47: 2.2 | N47: 1.431578947 | R47: Barrandov | S47: 20 | T47: 79 | U47: 3.95 | V47: 2.971052632
B48: COSP | C48: 20 | D48: 31.5 | E48: 1.575 | F48: 0.7967105263 | J48: COSP | K48: 20 | L48: 48.5 | M48: 2.425 | N48: 1.007236842 | R48: COSP | S48: 20 | T48: 80 | U48: 4 | V48: 2.289473684
B49: Resonances | C49: 20 | D49: 40.5 | E49: 2.025 | F49: 0.4861842105 | J49: Resonances | K49: 20 | L49: 39 | M49: 1.95 | N49: 0.6289473684 | R49: Resonances | S49: 20 | T49: 79.5 | U49: 3.975 | V49: 1.591447368
B50: Sounddirect | C50: 20 | D50: 9 | E50: 0.45 | F50: 0.3657894737 | J50: Sounddirect | K50: 20 | L50: 8.5 | M50: 0.425 | N50: 0.3493421053 | R50: Sounddirect | S50: 20 | T50: 17.5 | U50: 0.875 | V50: 0.8388157895
B53: ANOVA | J53: ANOVA | R53: ANOVA
B54: Zdroj variability | C54: SS | D54: Rozdíl | E54: MS | F54: F | G54: Hodnota P | H54: F krit | J54: Zdroj variability | K54: SS | L54: Rozdíl | M54: MS | N54: F | O54: Hodnota P | P54: F krit | R54: Zdroj variability | S54: SS | T54: Rozdíl | U54: MS | V54: F | W54: Hodnota P | X54: F krit
B55: Mezi výběry | C55: 28.725 | D55: 3 | E55: 9.575 | F55: 16.32529445 | G55: 2.773916129e-08 | H55: 2.72494392 | J55: Mezi výběry | K55: 49.075 | L55: 3 | M55: 16.35833333 | N55: 19.14876139 | O55: 2.399016316e-09 | P55: 2.72494392 | R55: Mezi výběry | S55: 144.175 | T55: 3 | U55: 48.05833333 | V55: 24.99526661 | W55: 2.352340442e-11 | X55: 2.72494392
B56: Všechny výběry | C56: 44.575 | D56: 76 | E56: 0.5865131579 | J56: Všechny výběry | K56: 64.925 | L56: 76 | M56: 0.8542763158 | R56: Všechny výběry | S56: 146.125 | T56: 76 | U56: 1.922697368
B58: Celkem | C58: 73.3 | D58: 79 | J58: Celkem | K58: 114 | L58: 79 | R58: Celkem | S58: 290.3 | T58: 79
B62: Markéta Lazarová
B63: Anova: jeden faktor | J63: Anova: jeden faktor | R63: Anova: jeden faktor
B65: Markéta Lazarová - ukázka 1: Dialog ženy - hudba v pozadí | J65: Jedenácté přikázání - ukázka 2: Monolog muž - tiché pozadí | R65: Markéta lazarová - Souhrn
B66: Výběr | C66: Počet | D66: Součet | E66: Průměr | F66: Rozptyl | J66: Výběr | K66: Počet | L66: Součet | M66: Průměr | N66: Rozptyl | R66: Výběr | S66: Počet | T66: Součet | U66: Průměr | V66: Rozptyl
B67: Barrandov | C67: 20 | D67: 25.5 | E67: 1.275 | F67: 0.4072368421 | J67: Barrandov | K67: 20 | L67: 24.5 | M67: 1.225 | N67: 0.4335526316 | R67: Barrandov | S67: 20 | T67: 50 | U67: 2.5 | V67: 1.026315789
B68: COSP | C68: 20 | D68: 21.5 | E68: 1.075 | F68: 0.6388157895 | J68: COSP | K68: 20 | L68: 39 | M68: 1.95 | N68: 0.55 | R68: COSP | S68: 20 | T68: 60.5 | U68: 3.025 | V68: 1.170394737
B69: Resonances | C69: 20 | D69: 35.5 | E69: 1.775 | F69: 0.3809210526 | J69: Resonances | K69: 20 | L69: 37.5 | M69: 1.875 | N69: 0.8125 | R69: Resonances | S69: 20 | T69: 73 | U69: 3.65 | V69: 1.897368421
B70: Sounddirect | C70: 20 | D70: 23.5 | E70: 1.175 | F70: 0.2177631579 | J70: Sounddirect | K70: 20 | L70: 19 | M70: 0.95 | N70: 0.3921052632 | R70: Sounddirect | S70: 20 | T70: 42.5 | U70: 2.125 | V70: 0.6809210526
B73: ANOVA | J73: ANOVA | R73: ANOVA
B74: Zdroj variability | C74: SS | D74: Rozdíl | E74: MS | F74: F | G74: Hodnota P | H74: F krit | J74: Zdroj variability | K74: SS | L74: Rozdíl | M74: MS | N74: F | O74: Hodnota P | P74: F krit | R74: Zdroj variability | S74: SS | T74: Rozdíl | U74: MS | V74: F | W74: Hodnota P | X74: F krit
B75: Mezi výběry | C75: 5.8 | D75: 3 | E75: 1.933333333 | F75: 4.701866667 | G75: 0.004588465367 | H75: 2.72494392 | J75: Mezi výběry | K75: 14.425 | L75: 3 | M75: 4.808333333 | N75: 8.789737422 | O75: 4.485293804e-05 | P75: 2.72494392 | R75: Mezi výběry | S75: 26.325 | T75: 3 | U75: 8.775 | V75: 7.35078534 | W75: 0.0002168570473 | X75: 2.72494392
B76: Všechny výběry | C76: 31.25 | D76: 76 | E76: 0.4111842105 | J76: Všechny výběry | K76: 41.575 | L76: 76 | M76: 0.5470394737 | R76: Všechny výběry | S76: 90.725 | T76: 76 | U76: 1.19375
B78: Celkem | C78: 37.05 | D78: 79 | J78: Celkem | K78: 56 | L78: 79 | R78: Celkem | S78: 117.05 | T78: 79
B81: Souhrn
B83: Anova: jeden faktor
B85: Celkové hodnocení
B86: Výběr | C86: Počet | D86: Součet | E86: Průměr | F86: Rozptyl
B87: Barrandov | C87: 20 | D87: 236.5 | E87: 11.825 | F87: 9.770394737
B88: COSP | C88: 20 | D88: 264 | E88: 13.2 | F88: 4.273684211
B89: Resonances | C89: 20 | D89: 262.5 | E89: 13.125 | F89: 5.391447368
B90: Sounddirect | C90: 20 | D90: 185 | E90: 9.25 | F90: 2.881578947
B93: ANOVA
B94: Zdroj variability | C94: SS | D94: Rozdíl | E94: MS | F94: F | G94: Hodnota P | H94: F krit
B95: Mezi výběry | C95: 204.175 | D95: 3 | E95: 68.05833333 | F95: 12.19841597 | G95: 1.33918708e-06 | H95: 2.72494392
B96: Všechny výběry | C96: 424.025 | D96: 76 | E96: 5.579276316
B98: Celkem | C98: 628.2 | D98: 79

Sheet Tukeyho metoda
P2: Polní maršálek ukázka 1 | S2: Tukeyho metoda - C. a k. polní maršálek - Ukázka 1 | Y2: Polní maršálek souhrn | AB2: Tukeyho metoda - C. a k. polní maršálek - souhrn
S3: Pár | T3: Absolutní rozdíl | U3: HSD | V3: Statisticky významný rozdíl | AB3: Pár | AC3: Absolutní rozdíl | AD3: HSD | AE3: Statisticky významný rozdíl
C4: Konstanty | P4: MS | Q4: 0.5786184211 | S4: Barr - COSP | T4: =ABS(Q7-Q8) -> 0.075 | U4: =$Q$4 -> 0.5786184211 | V4: Ne | Y4: MS | Z4: 0.9904605263 | AB4: Barr - COSP | AC4: 0.25 | AD4: 0.8267275421 | AE4: Ne
C5: df | D5: =4*(20-1) -> 76 | P5: HSD | Q5: =$D$7*SQRT(Q4/20) -> 0.6318877676 | S5: Barr - Res | T5: =ABS(Q7-Q9) -> 0.95 | U5: =$Q$4 -> 0.5786184211 | V5: Ano | Y5: HSD | Z5: =D7*SQRT(Z4/20) -> 0.8267275421 | AB5: Barr - Res | AC5: 1.125 | AD5: 0.8267275421 | AE5: Ano
C6: k | D6: 4 | P6: Průmer hodnot | S6: Barr -Sondd | T6: =ABS(Q7-Q10) -> 0.325 | U6: =$Q$4 -> 0.5786184211 | V6: Ne | Y6: Průmer hodnot | AB6: Barr -Sondd | AC6: 0.225 | AD6: 0.8267275421 | AE6: Ne
C7: q | D7: 3.715 | P7: Barrandov | Q7: 1.875 | S7: COSP - Ress | T7: =ABS(Q8-Q9) -> 1.025 | U7: =$Q$4 -> 0.5786184211 | V7: Ano | Y7: Barrandov | Z7: 3.475 | AB7: COSP - Ress | AC7: 0.875 | AD7: 0.8267275421 | AE7: Ano
P8: COSP | Q8: 1.95 | S8: COSP - Soundd | T8: =ABS(Q8-Q10) -> 0.4 | U8: =$Q$4 -> 0.5786184211 | V8: Ne | Y8: COSP | Z8: 3.225 | AB8: COSP - Soundd | AC8: 0.025 | AD8: 0.8267275421 | AE8: Ne
P9: Resonances | Q9: 0.925 | S9: Ress - Soundd | T9: =ABS(Q9-Q10) -> 0.625 | U9: =$Q$4 -> 0.5786184211 | V9: Ano | Y9: Resonances | Z9: 2.35 | AB9: Ress - Soundd | AC9: 0.9 | AD9: 0.8267275421 | AE9: Ano
P10: Soundd | Q10: 1.55 | Y10: Soundd | Z10: 3.25
G14: Jedenácté přikázání ukázka 1 | J14: Tukeyho metoda - Jedenácté přikázání - Ukázka 1 | P14: Jedenácté přikázání ukázka 2 | S14: Tukeyho metoda - Jedenácté přikázání - Ukázka 2 | Y14: Jedenácté přikázání souhrn | AB14: Tukeyho metoda - Jedenácté přikázání - Souhrn
J15: Pár | K15: Absolutní rozdíl | L15: HSD | M15: Statisticky významný rozdíl | S15: Pár | T15: Absolutní rozdíl | U15: HSD | V15: Statisticky významný rozdíl | AB15: Pár | AC15: Absolutní rozdíl | AD15: HSD | AE15: Statisticky významný rozdíl
G16: MS | H16: 0.5164473684 | J16: Barr - COSP | K16: =ABS(H19-H20) -> 0.55 | L16: =H$17 -> 0.5969759766 | M16: Ne | P16: MS | Q16: 0.4559210526 | S16: Barr - COSP | T16: =ABS(Q19-Q20) -> 0.5 | U16: =Q$17 -> 0.5609041375 | V16: Ne | Y16: MS | Z16: 1.359210526 | AB16: Barr - COSP | AC16: =ABS(Z19-Z20) -> 1.05 | AD16: =Z$17 -> 0.9684722581 | AE16: Ano
G17: HSD | H17: =$D$7*SQRT(H16/20) -> 0.5969759766 | J17: Barr - Res | K17: =ABS(H19-H21) -> 0.05 | L17: =H$17 -> 0.5969759766 | M17: Ne | P17: HSD | Q17: =$D$7*SQRT(Q16/20) -> 0.5609041375 | S17: Barr - Res | T17: =ABS(Q19-Q21) -> 1.3 | U17: =Q$17 -> 0.5609041375 | V17: Ano | Y17: HSD | Z17: =$D$7*SQRT(Z16/20) -> 0.9684722581 | AB17: Barr - Res | AC17: =ABS(Z19-Z21) -> 1.25 | AD17: =Z$17 -> 0.9684722581 | AE17: Ano
G18: Průmer hodnot | J18: Barr -Sondd | K18: =ABS(H19-H22) -> 0.4 | L18: 0.5969759766 | M18: Ne | P18: Průmer hodnot | S18: Barr -Sondd | T18: =ABS(Q19-Q22) -> 0.7 | U18: 0.5609041375 | V18: Ano | Y18: Průmer hodnot | AB18: Barr -Sondd | AC18: =ABS(Z19-Z22) -> 1.1 | AD18: 0.9684722581 | AE18: Ano
G19: Barrandov | H19: 1.275 | J19: COSP - Ress | K19: =ABS(H20-H21) -> 0.6 | L19: 0.5969759766 | M19: Ano | P19: Barrandov | Q19: 0.625 | S19: COSP - Ress | T19: =ABS(Q20-Q21) -> 0.8 | U19: 0.5609041375 | V19: Ano | Y19: Barrandov | Z19: 1.9 | AB19: COSP - Ress | AC19: =ABS(Z20-Z21) -> 0.2 | AD19: 0.9684722581 | AE19: Ne
G20: COSP | H20: 1.825 | J20: COSP - Soundd | K20: =ABS(H20-H22) -> 0.15 | L20: 0.5969759766 | M20: Ne | P20: COSP | Q20: 1.125 | S20: COSP - Soundd | T20: =ABS(Q20-Q22) -> 0.2 | U20: 0.5609041375 | V20: Ne | Y20: COSP | Z20: 2.95 | AB20: COSP - Soundd | AC20: =ABS(Z20-Z22) -> 0.05 | AD20: 0.9684722581 | AE20: Ne
G21: Resonances | H21: 1.225 | J21: Ress - Soundd | K21: =ABS(H21-H22) -> 0.45 | L21: 0.5969759766 | M21: Ne | P21: Resonances | Q21: 1.925 | S21: Ress - Soundd | T21: =ABS(Q21-Q22) -> 0.6 | U21: 0.5609041375 | V21: Ano | Y21: Resonances | Z21: 3.15 | AB21: Ress - Soundd | AC21: =ABS(Z21-Z22) -> 0.15 | AD21: 0.9684722581 | AE21: Ne
G22: Soundd | H22: 1.675 | P22: Soundd | Q22: 1.325 | Y22: Soundd | Z22: 3
G26: Vlčí jáma ukázka 1 | J26: Tukeyho metoda - Vlčí jáma - Ukázka 1 | P26: Vlčí Jáma ukázka 2 | S26: Tukeyho metoda - Vlčí jáma - Ukázka 2 | Y26: Vlčí jáma souhrn | AB26: Tukeyho metoda - Vlčí jáma - Souhrn
J27: Pár | K27: Absolutní rozdíl | L27: HSD | M27: Statisticky významný rozdíl | S27: Pár | T27: Absolutní rozdíl | U27: HSD | V27: Statisticky významný rozdíl | AB27: Pár | AC27: Absolutní rozdíl | AD27: HSD | AE27: Statisticky významný rozdíl
G28: MS | H28: 0.5865131579 | J28: Barr - COSP | K28: =ABS(H31-H32) -> 0.175 | L28: =H29 -> 0.6361839379 | M28: Ne | P28: MS | Q28: 0.8542763158 | S28: Barr - COSP | T28: =ABS(Q31-Q32) -> 0.225 | U28: 0.7677909757 | V28: Ne | Y28: MS | Z28: 1.922697368 | AB28: Barr - COSP | AC28: =ABS(Z31-Z32) -> 0.05 | AD28: 1.15185891 | AE28: Ne
G29: HSD | H29: =$D$7*SQRT(H28/20) -> 0.6361839379 | J29: Barr - Res | K29: =ABS(H31-H33) -> 0.275 | L29: 0.6361839379 | M29: Ne | P29: HSD | Q29: =$D$7*SQRT(Q28/20) -> 0.7677909757 | S29: Barr - Res | T29: =ABS(Q31-Q33) -> 0.25 | U29: 0.7677909757 | V29: Ne | Y29: HSD | Z29: =$D$7*SQRT(Z28/20) -> 1.15185891 | AB29: Barr - Res | AC29: =ABS(Z31-Z33) -> 0.025 | AD29: 1.15185891 | AE29: Ne
G30: Průmer hodnot | J30: Barr -Sondd | K30: =ABS(H31-H34) -> 1.3 | L30: 0.6361839379 | M30: Ano | P30: Průmer hodnot | S30: Barr -Sondd | T30: =ABS(Q31-Q34) -> 1.775 | U30: 0.7677909757 | V30: Ano | Y30: Průmer hodnot | AB30: Barr -Sondd | AC30: =ABS(Z31-Z34) -> 3.075 | AD30: 1.15185891 | AE30: Ano
G31: Barrandov | H31: 1.75 | J31: COSP - Ress | K31: =ABS(H32-H33) -> 0.45 | L31: 0.6361839379 | M31: Ne | P31: Barrandov | Q31: 2.2 | S31: COSP - Ress | T31: =ABS(Q32-Q33) -> 0.475 | U31: 0.7677909757 | V31: Ne | Y31: Barrandov | Z31: 3.95 | AB31: COSP - Ress | AC31: =ABS(Z32-Z33) -> 0.025 | AD31: 1.15185891 | AE31: Ne
G32: COSP | H32: 1.575 | J32: COSP - Soundd | K32: =ABS(H32-H34) -> 1.125 | L32: 0.6361839379 | M32: Ano | P32: COSP | Q32: 2.425 | S32: COSP - Soundd | T32: =ABS(Q32-Q34) -> 2 | U32: 0.7677909757 | V32: Ano | Y32: COSP | Z32: 4 | AB32: COSP - Soundd | AC32: =ABS(Z32-Z34) -> 3.125 | AD32: 1.15185891 | AE32: Ano
G33: Resonances | H33: 2.025 | J33: Ress - Soundd | K33: =ABS(H33-H34) -> 1.575 | L33: 0.6361839379 | M33: Ano | P33: Resonances | Q33: 1.95 | S33: Ress - Soundd | T33: =ABS(Q33-Q34) -> 1.525 | U33: 0.7677909757 | V33: Ano | Y33: Resonances | Z33: 3.975 | AB33: Ress - Soundd | AC33: =ABS(Z33-Z34) -> 3.1 | AD33: 1.15185891 | AE33: Ano
G34: Soundd | H34: 0.45 | P34: Soundd | Q34: 0.425 | Y34: Soundd | Z34: 0.875
G37: Markéta Lazarová ukázka 1 | J37: Tukeyho metoda - Markéta lazarová - Ukázka 1 | P37: Markéta Lazarová ukázka 2 | S37: Tukeyho metoda - Markéta Lazarová - Ukázka 2 | Y37: Markéta Lazarová souhrn | AB37: Tukeyho metoda - Markéta Lazarová- Souhrn
J38: Pár | K38: Absolutní rozdíl | L38: HSD | M38: Statisticky významný rozdíl | S38: Pár | T38: Absolutní rozdíl | U38: HSD | V38: Statisticky významný rozdíl | AB38: Pár | AC38: Absolutní rozdíl | AD38: HSD | AE38: Statisticky významný rozdíl
G39: MS | H39: 0.4111842105 | J39: Barr - COSP | K39: =ABS(H42-H43) -> 0.2 | L39: 0.5326746571 | M39: Ne | P39: MS | Q39: 0.5470394737 | S39: Barr - COSP | T39: =ABS(Q42-Q43) -> 0.725 | U39: 0.6144027531 | V39: Ano | Y39: MS | Z39: 1.19375 | AB39: Barr - COSP | AC39: =ABS(Z42-Z43) -> 0.525 | AD39: 0.907612592 | AE39: Ne
G40: HSD | H40: =$D$7*SQRT(H39/20) -> 0.5326746571 | J40: Barr - Res | K40: =ABS(H42-H44) -> 0.5 | L40: 0.5326746571 | M40: Ne | P40: HSD | Q40: =$D$7*SQRT(Q39/20) -> 0.6144027531 | S40: Barr - Res | T40: =ABS(Q42-Q44) -> 0.65 | U40: 0.6144027531 | V40: Ano | Y40: HSD | Z40: =$D$7*SQRT(Z39/20) -> 0.907612592 | AB40: Barr - Res | AC40: =ABS(Z42-Z44) -> 1.15 | AD40: 0.907612592 | AE40: Ano
G41: Průmer hodnot | J41: Barr -Sondd | K41: =ABS(H42-H45) -> 0.1 | L41: 0.5326746571 | M41: Ne | P41: Průmer hodnot | S41: Barr -Sondd | T41: =ABS(Q42-Q45) -> 0.275 | U41: 0.6144027531 | V41: Ne | Y41: Průmer hodnot | AB41: Barr -Sondd | AC41: =ABS(Z42-Z45) -> 0.375 | AD41: 0.907612592 | AE41: Ne
G42: Barrandov | H42: 1.275 | J42: COSP - Ress | K42: =ABS(H43-H44) -> 0.7 | L42: 0.5326746571 | M42: Ano | P42: Barrandov | Q42: 1.225 | S42: COSP - Ress | T42: =ABS(Q43-Q44) -> 0.075 | U42: 0.6144027531 | V42: Ne | Y42: Barrandov | Z42: 2.5 | AB42: COSP - Ress | AC42: =ABS(Z43-Z44) -> 0.625 | AD42: 0.907612592 | AE42: Ne
G43: COSP | H43: 1.075 | J43: COSP - Soundd | K43: =ABS(H43-H45) -> 0.1 | L43: 0.5326746571 | M43: Ne | P43: COSP | Q43: 1.95 | S43: COSP - Soundd | T43: =ABS(Q43-Q45) -> 1 | U43: 0.6144027531 | V43: Ano | Y43: COSP | Z43: 3.025 | AB43: COSP - Soundd | AC43: =ABS(Z43-Z45) -> 0.9 | AD43: 0.907612592 | AE43: Ne
G44: Resonances | H44: 1.775 | J44: Ress - Soundd | K44: =ABS(H44-H45) -> 0.6 | L44: 0.5326746571 | M44: Ano | P44: Resonances | Q44: 1.875 | S44: Ress - Soundd | T44: =ABS(Q44-Q45) -> 0.925 | U44: 0.6144027531 | V44: Ano | Y44: Resonances | Z44: 3.65 | AB44: Ress - Soundd | AC44: =ABS(Z44-Z45) -> 1.525 | AD44: 0.907612592 | AE44: Ano
G45: Soundd | H45: 1.175 | P45: Soundd | Q45: 0.95 | Y45: Soundd | Z45: 2.125
G49: Pátové srovnávání souhrn | J49: Tukeyho metoda - Párové srovnávání - Souhrn
J50: Pár | K50: Absolutní rozdíl | L50: HSD | M50: Statisticky významný rozdíl
G51: MS | H51: 5.579276316 | J51: Barr - COSP | K51: =ABS(H54-H55) -> 1.375 | L51: 1.962152489 | M51: Ne
G52: HSD | H52: =$D$7*SQRT(H51/20) -> 1.962152489 | J52: Barr - Res | K52: =ABS(H54-H56) -> 1.3 | L52: 1.962152489 | M52: Ne
G53: Průmer hodnot | J53: Barr -Sondd | K53: =ABS(H54-H57) -> 2.575 | L53: 1.962152489 | M53: Ano
G54: Barrandov | H54: 11.825 | J54: COSP - Ress | K54: =ABS(H55-H56) -> 0.075 | L54: 1.962152489 | M54: Ne
G55: COSP | H55: 13.2 | J55: COSP - Soundd | K55: =ABS(H55-H57) -> 3.95 | L55: 1.962152489 | M55: Ano
G56: Resonances | H56: 13.125 | J56: Ress - Soundd | K56: =ABS(H56-H57) -> 3.875 | L56: 1.962152489 | M56: Ano
G57: Soundd | H57: 9.25
